bitfinex-derivatives/quotes_BTCF0:USTF0_20241231
["timestamp","ask_amount","ask_price","bid_price","bid_amount"]
[1735611309648,0.1265309,92600.0,92598.0,0.3608]
[1735611310859,0.1285309,92600.0,92598.0,0.3608]
[1735611311356,0.1295309,92600.0,92598.0,0.001]
[1735611313164,0.1295309,92600.0,92599.0,0.41489]
[1735611313962,0.09961946,92623.0,92599.0,0.3608]
[1735611314160,0.09961946,92623.0,92614.0,0.3608]
[1735611314355,0.09961946,92623.0,92615.0,0.0393]
[1735611314859,0.1221286,92623.0,92615.0,0.0393]
[1735611315266,0.02850914,92623.0,92615.0,0.0393]
[1735611315966,0.03450914,92623.0,92615.0,0.0403]
[1735611317357,0.03750914,92623.0,92615.0,0.0413]
[1735611323061,0.03750914,92623.0,92615.0,0.002]
[1735611325374,0.03150914,92623.0,92615.0,0.001]
[1735611325575,0.02250914,92623.0,92615.0,0.007]
[1735611325874,0.48476,92624.0,92615.0,0.007]
[1735611326973,0.48476,92624.0,92615.0,0.005]
[1735611327477,0.51344958,92624.0,92615.0,0.005]
[1735611327679,0.51344958,92624.0,92615.0,0.004]
[1735611327977,0.51344958,92624.0,92615.0,0.003]
[1735611329475,0.51344958,92624.0,92623.0,0.3608]
[1735611329971,0.51344958,92624.0,92623.0,0.3994]
[1735611330270,0.51344958,92624.0,92623.0,1.8994]
[1735611330868,0.51444958,92624.0,92623.0,0.3994]
[1735611331475,0.51444958,92624.0,92623.0,1.8994]
[1735611331681,0.02968958,92624.0,92623.0,1.8994]
[1735611333270,0.02868958,92624.0,92623.0,1.8994]
[1735611333471,0.3608,92637.0,92623.0,1.8994]
[1735611333976,0.3608,92637.0,92623.0,1.9034]
[1735611334372,0.001,92624.0,92623.0,1.9124]
[1735611334777,0.001,92624.0,92623.0,1.9084]
[1735611335071,0.39046391,92637.0,92623.0,1.9124]
[1735611335686,0.38946391,92637.0,92623.0,1.9034]
[1735611335978,0.001,92624.0,92623.0,1.9124]
[1735611336577,0.001,92624.0,92623.0,1.9084]
[1735611336773,0.001,92624.0,92623.0,1.9124]
[1735611337484,0.02866391,92637.0,92623.0,1.9034]
[1735611337683,0.001,92637.0,92623.0,1.9124]
[1735611338283,0.0744,92639.0,92623.0,1.9034]
[1735611338488,0.001,92624.0,92623.0,1.9124]
[1735611339084,0.001,92637.0,92623.0,1.9124]
[1735611339385,0.001,92637.0,92624.0,0.054075]
[1735611340181,0.001,92637.0,92623.0,1.91296]
[1735611340182,0.001,92637.0,92623.0,1.87436]
[1735611340383,0.001,92637.0,92623.0,0.3738]
[1735611340683,0.001,92637.0,92624.0,0.004]
[1735611340880,0.001,92637.0,92627.0,0.11257518]
[1735611341371,0.02781629,92639.0,92629.0,0.054073]
[1735611341570,0.0792,92649.0,92632.0,0.3608]
[1735611341975,0.001,92637.0,92632.0,0.3608]
[1735611342576,0.001,92639.0,92632.0,0.3608]
[1735611343289,0.001,92639.0,92637.0,0.054068]
[1735611344289,0.0374,92650.0,92640.0,0.054066]
[1735611344594,0.0374,92650.0,92642.0,0.054065]
[1735611344774,0.0382,92659.0,92640.0,0.47337518]
[1735611344978,0.0382,92659.0,92649.0,0.3608]
[1735611345684,0.06600162,92659.0,92649.0,0.3608]
[1735611346390,0.06800162,92659.0,92652.0,0.054059]
[1735611347281,0.06900162,92659.0,92652.0,0.054059]
[1735611347791,0.06900162,92659.0,92649.0,0.3608]
[1735611347991,0.02880162,92659.0,92658.0,0.3608]
[1735611348179,0.03280162,92659.0,92658.0,0.3608]
[1735611348984,0.03280162,92659.0,92658.0,0.414856]
[1735611349187,0.03580162,92659.0,92658.0,0.415856]
[1735611350082,0.03380162,92659.0,92658.0,0.415856]
[1735611350283,0.03480162,92659.0,92658.0,0.415856]
[1735611350485,0.03480162,92659.0,92658.0,0.3618]
[1735611350891,0.03380162,92659.0,92658.0,1.8618]
[1735611351091,0.03680162,92659.0,92658.0,1.8618]
[1735611353992,0.03680162,92659.0,92658.0,0.3618]
[1735611361800,0.03180162,92659.0,92658.0,0.3698]
[1735611362006,0.02880162,92659.0,92658.0,0.3738]
[1735611362402,0.02780162,92659.0,92658.0,0.3648]
[1735611362605,0.001,92659.0,92658.0,0.3648]
[1735611362898,0.002,92659.0,92658.0,0.3608]
[1735611363198,0.03085034,92659.0,92640.0,0.3608]
[1735611363400,0.11257518,92650.0,92640.0,0.3608]
[1735611363598,0.08,92649.0,92640.0,0.3608]
[1735611365001,0.08,92649.0,92640.0,0.3708]
[1735611365889,0.08,92649.0,92640.0,0.3638]
[1735611366096,0.08,92649.0,92640.0,0.3688]
[1735611366097,0.081,92649.0,92640.0,0.3688]
[1735611367099,0.3608,92646.0,92640.0,0.008]
[1735611367805,0.3608,92646.0,92640.0,0.001]
[1735611368108,0.3608,92646.0,92640.0,0.004]
[1735611368503,0.3608,92644.0,92621.0,1.86136]
[1735611368712,0.11257518,92631.0,92621.0,1.8608]
[1735611369007,0.0762,92630.0,92621.0,1.8608]
[1735611369311,0.3608,92623.0,92598.0,0.3608]
[1735611369509,0.11257518,92620.0,92608.0,0.3608]
[1735611370005,0.3608,92615.0,92604.0,0.00064]
[1735611370207,0.11257518,92620.0,92613.0,0.3608]
[1735611371905,0.11257518,92620.0,92601.0,0.054089]
[1735611372108,0.22515036,92611.0,92592.0,0.3608]
[1735611372309,0.11257518,92602.0,92592.0,0.3608]
[1735611372998,0.11257518,92602.0,92580.0,0.3608]
[1735611372999,0.3608,92593.0,92580.0,0.3608]
[1735611373203,0.11257518,92591.0,92580.0,0.3608]
[1735611374095,0.0778,92590.0,92580.0,0.3608]
[1735611374301,0.11257518,92591.0,92580.0,0.3608]
[1735611375008,0.4844,92592.0,92587.0,0.054097]
[1735611375212,0.02106996,92599.0,92591.0,0.3608]
[1735611375410,0.3608,92618.0,92603.0,0.054088]
[1735611375711,0.11257518,92613.0,92603.0,0.054088]
[1735611375913,0.11257518,92613.0,92612.0,1.5]
[1735611376104,0.3608,92618.0,92612.0,1.5]
[1735611376405,0.39624552,92618.0,92613.0,0.0404]
[1735611377012,0.03544552,92618.0,92613.0,0.0404]
[1735611377213,0.11257518,92622.0,92612.0,1.50064]
[1735611377515,0.11257518,92622.0,92612.0,1.5]
[1735611378104,0.11257518,92622.0,92603.0,0.002]
[1735611378305,0.4844,92623.0,92603.0,0.002]
[1735611378306,0.11257518,92613.0,92603.0,0.002]
[1735611378507,0.3608,92617.0,92613.0,0.007]
[1735611379214,0.3608,92617.0,92603.0,0.001]
[1735611379810,0.3628,92617.0,92602.0,0.0404]
[1735611380108,0.3628,92617.0,92613.0,0.004]
[1735611381617,0.3638,92617.0,92603.0,0.007]
[1735611381816,0.22515036,92613.0,92603.0,0.01]
[1735611382011,0.3608,92609.0,92603.0,0.01]
[1735611382314,0.3608,92609.0,92583.0,0.0375]
[1735611382315,0.1175,92608.0,92583.0,0.0375]
[1735611382508,0.3608,92598.0,92583.0,0.0375]
[1735611383509,0.3608,92598.0,92590.0,0.3618]
[1735611383711,0.3608,92598.0,92590.0,0.3638]
[1735611384417,0.3608,92598.0,92590.0,0.003]
[1735611385315,0.39626778,92598.0,92590.0,0.003]
[1735611386101,0.03546778,92598.0,92590.0,0.003]
[1735611386307,0.3608,92609.0,92590.0,0.003]
[1735611386517,0.3608,92609.0,92590.0,0.002]
[1735611386718,0.3608,92609.0,92590.0,0.001]
[1735611387318,0.11257518,92610.0,92590.0,0.001]
[1735611387520,0.3608,92606.0,92590.0,0.001]
[1735611388012,0.14909096,92610.0,92591.0,0.054095]
[1735611388214,0.14909096,92610.0,92592.0,0.0377]
[1735611388415,0.03651578,92610.0,92594.0,0.054093]
[1735611388611,0.3608,92609.0,92594.0,0.054093]
[1735611388812,0.3608,92609.0,92595.0,1.5]
[1735611389621,0.11357518,92610.0,92595.0,1.5]
[1735611389826,0.001,92609.0,92594.0,0.002]
[1735611390319,0.11257518,92610.0,92594.0,0.002]
[1735611391320,0.3608,92601.0,92595.0,0.002]
[1735611391515,0.0813,92600.0,92595.0,0.002]
[1735611391716,0.1193,92600.0,92595.0,0.002]
[1735611392113,0.4193,92600.0,92594.0,0.002]
[1735611392313,0.15472905,92600.0,92581.0,0.33522247]
[1735611392517,0.3608,92590.0,92581.0,0.33522247]
[1735611393420,0.27330423,92600.0,92581.0,0.33522247]
[1735611393814,0.27330423,92600.0,92582.0,0.0371]
[1735611394111,0.04142905,92600.0,92582.0,0.0371]
[1735611394419,0.04142905,92600.0,92583.0,0.0376]
[1735611394617,0.04142905,92600.0,92586.0,0.054098]
[1735611394823,0.006,92600.0,92593.0,0.3608]
[1735611395020,0.03501559,92605.0,92593.0,0.3608]
[1735611395324,0.3608,92608.0,92604.0,0.054087]
[1735611395636,0.39622548,92619.0,92604.0,0.414887]
[1735611395942,0.39622548,92619.0,92605.0,0.091186]
[1735611396529,0.003,92608.0,92605.0,0.091186]
[1735611397023,0.4379,92639.0,92607.0,0.3608]
[1735611397227,0.11222579,92640.0,92622.0,0.3608]
[1735611397440,0.11222579,92650.0,92630.0,0.3608]
[1735611397626,0.3608,92644.0,92630.0,0.3608]
[1735611397943,0.11222579,92640.0,92630.0,0.3608]
[1735611398736,0.11222579,92640.0,92630.0,0.3628]
[1735611399327,0.11222579,92640.0,92630.0,0.3608]
[1735611399640,0.11222579,92640.0,92630.0,0.3628]
[1735611400431,0.14239952,92640.0,92630.0,0.3628]
[1735611401249,0.14235086,92640.0,92630.0,0.3628]
[1735611402325,0.14235086,92640.0,92630.0,0.3668]
[1735611404142,0.3608,92633.0,92630.0,0.006]
[1735611405231,0.0375,92632.0,92630.0,0.006]
[1735611405429,0.0375,92632.0,92630.0,0.002]
[1735611405631,0.0375,92632.0,92630.0,0.005]
[1735611405836,0.0375,92632.0,92630.0,0.004]
[1735611406038,0.0375,92632.0,92630.0,0.001]
[1735611406239,0.0375,92632.0,92630.0,0.004]
[1735611407243,0.0375,92632.0,92616.0,0.05408]
[1735611407244,0.0375,92632.0,92615.0,0.0401]
[1735611407447,0.0375,92632.0,92613.0,0.3608]
[1735611407448,0.11217713,92625.0,92613.0,0.3608]
[1735611408545,0.11217713,92625.0,92615.0,0.006]
[1735611409742,0.11217713,92625.0,92615.0,0.003]
[1735611409743,0.11317713,92625.0,92615.0,0.003]
[1735611409941,0.11317713,92625.0,92615.0,0.057081]
[1735611410133,0.11317713,92625.0,92615.0,0.054081]
[1735611411048,0.11317713,92625.0,92615.0,0.056081]
[1735611411845,0.11217713,92625.0,92615.0,0.056081]
[1735611412046,0.11317713,92625.0,92615.0,0.056081]
[1735611412452,0.14454916,92625.0,92615.0,0.056081]
[1735611413549,0.14454916,92625.0,92615.0,0.057081]
[1735611414142,0.14454916,92625.0,92615.0,0.003]
[1735611414343,0.14454916,92625.0,92615.0,0.002]
[1735611415039,0.50534916,92625.0,92613.0,0.3608]
[1735611415243,0.50534916,92625.0,92615.0,0.002]
[1735611416345,0.50434916,92625.0,92615.0,0.002]
[1735611416545,0.50534916,92625.0,92615.0,0.002]
[1735611416744,0.50534916,92625.0,92616.0,1.5]
[1735611417455,0.50534916,92625.0,92615.0,0.002]
[1735611417641,0.14454916,92625.0,92615.0,0.002]
[1735611418544,0.14454916,92625.0,92616.0,0.002]
[1735611418946,0.3608,92623.0,92616.0,0.002]
[1735611419139,0.3608,92622.0,92616.0,0.002]
[1735611419556,0.14454916,92625.0,92616.0,0.002]
[1735611419954,0.3608,92622.0,92616.0,0.002]
[1735611420253,0.14454916,92625.0,92616.0,0.002]
[1735611420943,0.14454916,92625.0,92610.0,1.50056]
[1735611421248,0.14454916,92625.0,92615.0,0.002]
[1735611421949,0.001,92623.0,92616.0,0.002]
[1735611422547,0.14454916,92625.0,92616.0,0.002]
[1735611423145,0.14354916,92625.0,92616.0,0.002]
[1735611423451,0.001,92623.0,92613.0,0.3608]
[1735611423658,0.001,92623.0,92615.0,0.002]
[1735611423844,0.14354916,92625.0,92615.0,0.002]
[1735611423845,0.14454916,92625.0,92615.0,0.002]
[1735611424248,0.3608,92624.0,92615.0,1.5]
[1735611424450,0.3608,92624.0,92616.0,0.002]
[1735611425151,0.3608,92624.0,92615.0,1.50256]
[1735611425455,0.3608,92624.0,92615.0,1.502]
[1735611426048,0.3618,92624.0,92615.0,1.502]
[1735611426243,0.001,92624.0,92615.0,1.502]
[1735611426550,0.3618,92624.0,92615.0,1.502]
[1735611427155,0.001,92624.0,92615.0,1.502]
[1735611427555,0.001,92624.0,92616.0,0.001]
[1735611428457,0.14354916,92625.0,92615.0,0.001]
[1735611428651,0.11217713,92630.0,92615.0,0.001]
[1735611429258,0.001,92624.0,92615.0,0.001]
[1735611429558,0.3608,92622.0,92615.0,0.001]
[1735611429860,0.11317713,92630.0,92615.0,0.001]
[1735611430256,0.11317713,92630.0,92616.0,0.001]
[1735611430457,0.11217713,92626.0,92616.0,0.001]
[1735611431051,0.11217713,92626.0,92615.0,0.002]
[1735611431554,0.001,92624.0,92615.0,0.003]
[1735611431755,0.001,92624.0,92615.0,0.001]
[1735611431949,0.001,92624.0,92616.0,0.001]
[1735611432158,0.11317713,92626.0,92616.0,0.003]
[1735611432752,0.001,92624.0,92616.0,0.001]
[1735611433561,0.001,92624.0,92615.0,0.002]
[1735611433761,0.001,92624.0,92615.0,0.004]
[1735611434358,0.001,92624.0,92615.0,0.002]
[1735611434560,0.001,92624.0,92616.0,0.002]
[1735611434957,0.3618,92624.0,92616.0,0.002]
[1735611435160,0.3608,92624.0,92596.0,0.039]
[1735611435460,0.3608,92624.0,92616.0,0.001]
[1735611435668,0.3608,92617.0,92597.0,1.5]
[1735611435963,0.3608,92606.0,92597.0,1.5]
[1735611436550,0.3608,92606.0,92605.0,0.001]
[1735611438048,0.3618,92606.0,92596.0,0.039]
[1735611438263,0.3618,92606.0,92605.0,0.001]
[1735611438659,0.3608,92606.0,92605.0,0.001]
[1735611438963,0.3608,92606.0,92596.0,0.039]
[1735611439354,0.3618,92606.0,92596.0,0.039]
[1735611441461,0.3608,92606.0,92596.0,0.041]
[1735611442266,0.3608,92606.0,92596.0,0.042]
[1735611442564,0.38874273,92606.0,92596.0,0.042]
[1735611443859,0.02794273,92606.0,92596.0,0.041]
[1735611444162,0.02794273,92606.0,92603.0,0.054088]
[1735611444664,0.02794273,92606.0,92605.0,0.054087]
[1735611444855,0.02794273,92606.0,92600.0,0.3608]
[1735611445050,0.02794273,92606.0,92605.0,1.5]
[1735611446157,0.02694273,92606.0,92605.0,1.5]
[1735611446365,0.001,92606.0,92605.0,1.5]
[1735611446567,0.001,92606.0,92600.0,0.3608]
[1735611446767,0.1392721,92610.0,92603.0,0.001]
[1735611447364,0.02709497,92610.0,92603.0,0.001]
[1735611447570,0.3608,92617.0,92605.0,0.001]
[1735611447767,0.3608,92616.0,92605.0,0.001]
[1735611448273,0.3608,92616.0,92600.0,0.3608]
[1735611448471,0.11217713,92610.0,92603.0,0.001]
[1735611449968,0.11217713,92610.0,92600.0,0.3608]
[1735611450165,0.11217713,92610.0,92605.0,0.001]
[1735611450973,0.3608,92616.0,92603.0,0.001]
[1735611451772,0.3608,92604.0,92585.0,0.19284357]
[1735611451968,0.11217713,92602.0,92585.0,0.19284357]
[1735611452166,0.11217713,92595.0,92585.0,0.19284357]
[1735611452366,0.0374,92594.0,92585.0,0.19284357]
[1735611452771,0.0374,92594.0,92583.0,0.414899]
[1735611453070,0.48456,92599.0,92583.0,0.3608]
[1735611453272,0.02628979,92600.0,92596.0,0.3608]
[1735611453469,0.3608,92621.0,92596.0,0.3608]
[1735611453661,0.3608,92621.0,92605.0,0.3608]
[1735611453866,0.0332088,92632.0,92614.0,0.3608]
[1735611454065,0.4814,92634.0,92619.0,0.054078]
[1735611454272,0.51162154,92633.0,92619.0,0.054078]
[1735611454468,0.11217713,92630.0,92619.0,0.054078]
[1735611454670,0.11217713,92630.0,92614.0,0.3608]
[1735611454875,0.11217713,92624.0,92614.0,0.3608]
[1735611455376,0.11217713,92630.0,92614.0,0.3608]
[1735611455670,0.11617713,92630.0,92614.0,0.3608]
[1735611455874,0.11617713,92630.0,92614.0,0.414881]
[1735611456172,0.11217713,92630.0,92614.0,0.414881]
[1735611456469,0.001,92624.0,92614.0,0.414881]
[1735611456876,0.11317713,92630.0,92614.0,0.414881]
[1735611457073,0.11217713,92624.0,92614.0,0.3608]
[1735611457266,0.3608,92622.0,92614.0,0.3608]
[1735611458576,0.3618,92622.0,92614.0,0.3608]
[1735611459966,0.3628,92622.0,92614.0,0.3608]
[1735611460777,0.3618,92622.0,92614.0,0.3608]
[1735611461379,0.3608,92622.0,92602.0,0.054088]
[1735611461572,0.3618,92622.0,92602.0,0.054088]
[1735611462668,0.3618,92622.0,92602.0,0.001]
[1735611462876,0.3608,92611.0,92602.0,0.001]
[1735611463079,0.1148,92610.0,92602.0,0.001]
[1735611464171,0.1148,92610.0,92602.0,0.002]
[1735611464673,0.1148,92610.0,92602.0,0.001]
[1735611464873,0.1148,92610.0,92602.0,0.002]
[1735611465477,0.1148,92610.0,92602.0,0.3628]
[1735611465780,0.1148,92610.0,92602.0,0.002]
[1735611468980,0.14135413,92610.0,92602.0,0.002]
[1735611469372,0.14135413,92610.0,92603.0,1.5]
[1735611470982,0.14135413,92610.0,92603.0,1.501]
[1735611472176,0.14135413,92610.0,92603.0,1.502]
[1735611473571,0.02655413,92610.0,92603.0,1.502]
[1735611473774,0.3608,92622.0,92608.0,0.3608]
[1735611473980,0.38807522,92622.0,92616.0,0.05408]
[1735611474183,0.38807522,92622.0,92616.0,1.55408]
[1735611474481,0.38807522,92622.0,92616.0,1.5]
[1735611474886,0.38807522,92622.0,92612.0,0.054083]
[1735611475077,0.3608,92615.0,92604.0,0.0411]
[1735611475280,0.11217713,92622.0,92605.0,0.054086]
[1735611475471,0.11217713,92622.0,92606.0,0.054086]
[1735611475980,0.11617713,92622.0,92606.0,0.054086]
[1735611476991,0.11217713,92622.0,92606.0,0.054086]
[1735611477182,0.11217713,92622.0,92605.0,0.001]
[1735611477687,0.3608,92613.0,92605.0,0.001]
[1735611477989,0.1241,92612.0,92605.0,0.001]
[1735611478578,0.1241,92612.0,92606.0,0.001]
[1735611479286,0.1241,92612.0,92605.0,0.001]
[1735611479791,0.1241,92612.0,92598.0,0.054091]
[1735611479986,0.1241,92612.0,92606.0,0.001]
[1735611482083,0.03319362,92620.0,92609.0,0.3608]
[1735611482284,0.48456,92621.0,92609.0,0.3608]
[1735611482988,0.48456,92621.0,92615.0,0.054081]
[1735611483196,0.51796962,92621.0,92615.0,0.054081]
[1735611483394,0.51796962,92621.0,92616.0,0.0374]
[1735611483592,0.51796962,92621.0,92616.0,1.5374]
[1735611483892,0.03319362,92632.0,92630.0,0.054072]
[1735611484097,0.3608,92641.0,92617.0,0.3608]
[1735611484098,0.3608,92641.0,92633.0,0.05407]
[1735611484289,0.11217713,92650.0,92637.0,0.3608]
[1735611484594,0.12409831,92650.0,92637.0,0.3608]
[1735611484780,0.11217713,92650.0,92637.0,0.3608]
[1735611485997,0.84644001,92651.0,92637.0,0.3608]
[1735611486293,0.11817713,92650.0,92637.0,0.3618]
[1735611486693,0.11817713,92650.0,92637.0,0.001]
[1735611486886,0.12717713,92650.0,92637.0,0.001]
[1735611487086,0.3608,92639.0,92637.0,0.001]
[1735611487285,0.1169,92638.0,92637.0,0.001]
[1735611487485,0.1169,92638.0,92630.0,0.3608]
[1735611488193,0.3608,92631.0,92621.0,0.35111418]
[1735611489500,0.04156439,92638.0,92630.0,0.3608]
[1735611489691,0.04156439,92638.0,92631.0,0.054071]
[1735611489888,0.03256439,92638.0,92631.0,0.054071]
[1735611490088,0.3608,92648.0,92631.0,0.054071]
[1735611490483,0.3608,92637.0,92630.0,0.3608]
[1735611490691,0.0404,92636.0,92630.0,0.3608]
[1735611492196,0.3608,92637.0,92631.0,0.054071]
[1735611492398,0.005,92636.0,92631.0,0.054071]
[1735611492592,0.014,92636.0,92630.0,0.3608]
[1735611493103,0.014,92636.0,92631.0,0.054072]
[1735611493291,0.014,92636.0,92632.0,1.5]
[1735611494101,0.014,92636.0,92634.0,0.05407]
[1735611495094,0.009,92636.0,92634.0,0.05407]
[1735611495294,0.009,92636.0,92632.0,1.50056]
[1735611495504,0.009,92636.0,92635.0,0.054069]
[1735611495998,0.001,92636.0,92635.0,0.054069]
[1735611496400,0.03404342,92637.0,92635.0,0.054069]
[1735611496598,0.001,92636.0,92635.0,0.054069]
[1735611496805,0.001,92636.0,92635.0,0.056069]
[1735611497604,0.3945797,92648.0,92635.0,0.056069]
[1735611497800,0.3945797,92648.0,92635.0,0.060069]
[1735611499298,0.3945797,92648.0,92635.0,0.002]
[1735611499504,0.3945797,92648.0,92635.0,0.006]
[1735611500291,0.3608,92640.0,92635.0,0.006]
[1735611501400,0.0337797,92648.0,92635.0,0.006]
[1735611501606,0.0404,92649.0,92642.0,0.054065]
[1735611501798,0.0404,92649.0,92640.0,0.3608]
[1735611501991,0.0404,92649.0,92641.0,0.054065]
[1735611502198,0.07408626,92649.0,92641.0,0.054065]
[1735611502504,0.03368626,92649.0,92648.0,0.414862]
[1735611502697,0.3608,92658.0,92648.0,0.414862]
[1735611503099,0.11217713,92660.0,92648.0,0.414862]
[1735611503300,0.14611998,92660.0,92648.0,0.414862]
[1735611505193,0.14611998,92660.0,92649.0,1.5]
[1735611505909,0.14611998,92660.0,92648.0,0.414862]
[1735611506107,0.14611998,92660.0,92648.0,0.417862]
[1735611506411,0.14611998,92660.0,92648.0,1.920862]
[1735611506709,0.14611998,92660.0,92648.0,0.006]
[1735611506710,0.3608,92653.0,92648.0,0.006]
[1735611507009,0.3608,92653.0,92649.0,0.007]
[1735611507602,0.3608,92653.0,92649.0,0.003]
[1735611508208,0.3608,92653.0,92648.0,0.004]
[1735611508711,0.3608,92653.0,92648.0,0.005]
[1735611509107,0.3608,92653.0,92630.0,0.3608]
[1735611509312,0.22435426,92640.0,92630.0,0.3608]
[1735611509608,0.22435426,92640.0,92613.0,0.054082]
[1735611509609,0.1183,92639.0,92613.0,0.054082]
[1735611509811,0.11217713,92630.0,92613.0,0.054082]
[1735611510703,0.11217713,92630.0,92613.0,0.058082]
[1735611512802,0.11217713,92630.0,92613.0,0.006]
[1735611513003,0.001,92630.0,92620.0,0.11217713]
[1735611513200,0.001,92630.0,92629.0,1.5]
[1735611514305,0.39395144,92633.0,92629.0,1.5]
[1735611515013,0.0796,92639.0,92629.0,1.5]
[1735611515215,0.11217713,92650.0,92634.0,0.05407]
[1735611515513,0.0381,92649.0,92634.0,0.05407]
[1735611515916,0.0813,92648.0,92634.0,0.05407]
[1735611516215,0.52561819,92644.0,92634.0,0.05407]
[1735611517410,0.52561819,92644.0,92630.0,0.0393]
[1735611517411,0.52561819,92644.0,92639.0,0.054067]
[1735611517609,0.52561819,92644.0,92636.0,0.3608]
[1735611517810,0.52661819,92644.0,92636.0,0.3608]
[1735611518417,0.52661819,92644.0,92640.0,0.054066]
[1735611520218,0.52561819,92644.0,92640.0,0.054066]
[1735611532313,0.04121819,92644.0,92640.0,0.054066]
[1735611532520,0.0404,92648.0,92640.0,0.054066]
[1735611534925,0.08205717,92648.0,92640.0,0.054066]
[1735611535220,0.0404,92648.0,92640.0,0.054066]
[1735611535527,0.0404,92648.0,92630.0,0.0393]
[1735611535722,0.11217713,92640.0,92629.0,1.554633]
[1735611535919,0.0402,92639.0,92632.0,0.054071]
[1735611536325,0.0402,92639.0,92629.0,1.50064]
[1735611536525,0.0402,92639.0,92629.0,1.5]
[1735611537221,0.0402,92639.0,92630.0,0.002]
[1735611537527,0.0412,92639.0,92630.0,0.002]
[1735611537918,0.3608,92635.0,92629.0,0.00064]
[1735611538113,0.3608,92635.0,92629.0,0.002]
[1735611538922,0.3608,92635.0,92630.0,0.002]
[1735611540515,0.3608,92635.0,92629.0,0.002]
[1735611540723,0.001,92635.0,92629.0,0.002]
[1735611540922,0.001,92635.0,92630.0,0.054072]
[1735611541123,0.04211072,92635.0,92630.0,0.054072]
[1735611542028,0.04211072,92635.0,92615.0,0.3608]
[1735611542029,0.001,92635.0,92615.0,0.3608]
[1735611542217,0.11217713,92625.0,92619.0,0.054078]
[1735611542533,0.001,92635.0,92622.0,0.054077]
[1735611542735,0.11217713,92632.0,92615.0,0.3608]
[1735611543035,0.0399,92631.0,92615.0,0.3608]
[1735611543831,0.0399,92631.0,92630.0,0.002]
[1735611544333,0.0399,92631.0,92615.0,0.414881]
[1735611544522,0.11217713,92630.0,92616.0,0.05408]
[1735611544926,0.11217713,92630.0,92617.0,0.054079]
[1735611545429,0.11217713,92630.0,92615.0,0.3608]
[1735611547135,0.0399,92631.0,92617.0,0.003]
[1735611547528,0.0399,92631.0,92620.0,0.054078]
[1735611547727,0.0399,92631.0,92621.0,1.5]
[1735611547924,0.08196983,92639.0,92629.0,0.3608]
[1735611548129,0.001,92630.0,92629.0,0.414873]
[1735611550151,0.04176983,92639.0,92629.0,0.3608]
[1735611550356,0.11217713,92650.0,92631.0,0.054071]
[1735611550550,0.11217713,92650.0,92625.0,0.3608]
[1735611550551,0.3608,92639.0,92625.0,0.3608]
[1735611550751,0.11217713,92635.0,92625.0,0.3608]
[1735611550944,0.001,92630.0,92629.0,0.006]
[1735611551454,0.0381,92634.0,92629.0,0.002]
[1735611551655,0.0381,92634.0,92631.0,0.001]
[1735611552153,0.004,92630.0,92625.0,0.3608]
[1735611553956,0.07746243,92634.0,92625.0,0.3608]
[1735611554657,0.07346243,92634.0,92625.0,0.3618]
[1735611555163,0.07346243,92634.0,92625.0,0.3608]
[1735611555346,0.07346243,92634.0,92625.0,0.3618]
[1735611557457,0.07346243,92634.0,92625.0,0.3608]
[1735611557656,0.3608,92631.0,92625.0,0.001]
[1735611559354,0.3608,92631.0,92607.0,0.4006]
[1735611559355,0.3618,92631.0,92607.0,0.4006]
[1735611559546,0.3608,92622.0,92607.0,0.4006]
[1735611560861,0.3608,92622.0,92610.0,0.11217713]
[1735611561049,0.3608,92622.0,92611.0,0.054083]
[1735611561547,0.11217713,92621.0,92612.0,1.5]
[1735611562855,0.11217713,92621.0,92611.0,0.01]
[1735611563054,0.0761,92620.0,92611.0,0.01]
[1735611563852,0.0761,92620.0,92611.0,0.007]
[1735611564054,0.0761,92620.0,92612.0,0.002]
[1735611564254,0.0761,92620.0,92612.0,0.006]
[1735611564649,0.0761,92620.0,92612.0,0.004]
[1735611564845,0.0761,92620.0,92608.0,1.50056]
[1735611564846,0.3608,92614.0,92611.0,0.004]
[1735611565056,0.0382,92613.0,92611.0,0.004]
[1735611565354,0.0382,92613.0,92611.0,0.001]
[1735611565553,0.0382,92613.0,92605.0,0.048]
[1735611565858,0.3608,92606.0,92586.0,0.3608]
[1735611566053,0.3608,92598.0,92586.0,0.3608]
[1735611566256,0.0787,92597.0,92586.0,0.3608]
[1735611566556,0.0787,92597.0,92581.0,0.0399]
[1735611566863,0.0787,92597.0,92578.0,0.3608]
[1735611566864,0.3608,92588.0,92578.0,0.3608]
[1735611568457,0.3618,92588.0,92578.0,0.3658]
[1735611568658,0.3618,92588.0,92578.0,0.3668]
[1735611568961,0.3608,92588.0,92578.0,0.3658]
[1735611570453,0.39568942,92588.0,92578.0,0.3658]
[1735611570963,0.39568942,92588.0,92578.0,0.3648]
[1735611571652,0.39568942,92588.0,92578.0,0.3638]
[1735611571854,0.39568942,92588.0,92578.0,0.3648]
[1735611572663,0.03488942,92588.0,92580.0,0.054101]
[1735611572861,0.03488942,92588.0,92585.0,0.054098]
[1735611573057,0.3608,92598.0,92585.0,0.054098]
[1735611573366,0.11217713,92600.0,92586.0,1.5]
[1735611573754,0.47297713,92600.0,92586.0,1.5]
[1735611574664,0.47397713,92600.0,92586.0,1.507]
[1735611575270,0.50962393,92600.0,92586.0,1.507]
[1735611575770,0.50962393,92600.0,92586.0,1.5]
[1735611575771,0.50862393,92600.0,92586.0,1.5]